fUSD/lending_fUSD_20240105
["ID","MTS","AMOUNT","RATE_DAILY","PERIOD"]
[310310125,1704471092077,-1289.38,0.00030684,2]
[310310126,1704471092086,-500.0,0.00030684,2]
[310310127,1704471092096,-500.0,0.00030684,2]
[310310128,1704471092107,-500.0,0.00030684,2]
[310310129,1704471092116,-500.0,0.00030684,2]
[310310130,1704471092126,-4950.03,0.00030684,2]
[310310131,1704471092136,-500.0,0.00030684,2]
[310310132,1704471092145,-734.2,0.00030684,2]
[310310133,1704471092155,-500.0,0.00030684,2]
[310310134,1704471092165,-500.0,0.00030684,2]
[310310135,1704471092175,-500.0,0.00030684,2]
[310310136,1704471092184,-500.0,0.00030684,2]
[310310137,1704471092194,-500.0,0.00030684,2]
[310310138,1704471092204,-500.0,0.00030684,2]
[310310139,1704471092214,-500.0,0.00030684,2]
[310310140,1704471092224,-500.0,0.00030684,2]
[310310141,1704471092235,-500.0,0.00030684,2]
[310310142,1704471092245,-554.71228746,0.00030684,2]
[310310143,1704471092255,-712.3,0.00030684,2]
[310310144,1704471092265,-573.47,0.00030684,2]
[310310145,1704471092276,-500.0,0.00030684,2]
[310310146,1704471092287,-834.43,0.00030684,2]
[310310147,1704471092297,-234.05058723,0.00030684,2]
[310310148,1704471092308,-500.0,0.00030684,2]
[310310149,1704471092317,-500.0,0.00030684,2]
[310310150,1704471092328,-188.2389003,0.00030684,2]
[310310151,1704471092338,-1459.15,0.00030684,2]
[310310152,1704471092348,-500.0,0.00030684,2]
[310310153,1704471092358,-281.71468223,0.00030684,2]
[310310154,1704471092369,-753.46,0.00030684,2]
[310310155,1704471092379,-500.0,0.00030684,2]
[310310156,1704471092390,-500.0,0.00030684,2]
[310310157,1704471092400,-500.0,0.00030684,2]
[310310158,1704471092411,-500.0,0.00030684,2]
[310310159,1704471092422,-500.0,0.00030684,2]
[310310160,1704471092432,-1169.4,0.00030684,2]
[310310161,1704471092442,-564.11,0.00030684,2]
[310310162,1704471092453,-598.84,0.00030684,2]
[310310163,1704471092463,-648.87969508,0.00030684,2]
[310310164,1704471092473,-500.0,0.00030684,2]
[310310165,1704471092484,-500.0,0.00030684,2]
[310310166,1704471092494,-1096.24,0.00030684,2]
[310310167,1704471092505,-500.0,0.00030684,2]
[310310168,1704471092515,-1425.41,0.00030684,2]
[310310169,1704471092526,-500.0,0.00030684,2]
[310310170,1704471092536,-6105.28,0.00030684,2]
[310310171,1704471092546,-2530.93,0.00030684,2]
[310310172,1704471092555,-500.0,0.00030684,2]
[310310173,1704471092565,-500.0,0.00030684,2]
[310310174,1704471092575,-500.0,0.00030684,2]
[310310175,1704471092586,-500.0,0.00030684,2]
[310310176,1704471092596,-500.0,0.00030684,2]
[310310177,1704471092606,-500.0,0.00030684,2]
[310310178,1704471092615,-500.0,0.00030684,2]
[310310179,1704471092626,-500.0,0.00030684,2]
[310310180,1704471092636,-500.0,0.00030684,2]
[310310181,1704471092646,-500.0,0.00030684,2]
[310310182,1704471092655,-820.35,0.00030684,2]
[310310183,1704471092665,-500.0,0.00030684,2]
[310310184,1704471092674,-526.88839596,0.00030684,2]
[310310185,1704471092684,-500.0,0.00030684,2]
[310310186,1704471092694,-1820.15,0.00030684,2]
[310310187,1704471092703,-500.0,0.00030684,2]
[310310188,1704471092713,-500.0,0.00030684,2]
[310310189,1704471092724,-848.25,0.00030684,2]
[310310190,1704471092735,-1454.88,0.00030684,2]
[310310191,1704471092744,-500.0,0.00030684,2]
[310310192,1704471092754,-3529.52,0.00030684,2]
[310310193,1704471092765,-500.0,0.00030684,2]
[310310194,1704471092775,-1261.77,0.00030684,2]
[310310195,1704471092783,-500.0,0.00030684,2]
[310310196,1704471092793,-500.0,0.00030684,2]
[310310197,1704471092803,-500.0,0.00030684,2]
[310310198,1704471092813,-500.0,0.00030684,2]
[310310199,1704471092823,-500.0,0.00030684,2]
[310310200,1704471092834,-673.04,0.00030684,2]
[310310201,1704471092844,-522.36,0.00030684,2]
[310310202,1704471092854,-500.0,0.00030684,2]
[310310203,1704471092864,-500.0,0.00030684,2]
[310310204,1704471092874,-553.0534134,0.00030684,2]
[310310205,1704471092884,-1207.05,0.00030684,2]
[310310206,1704471092894,-806.5,0.00030684,2]
[310310207,1704471092904,-543.14,0.00030684,2]
[310310208,1704471092914,-500.0,0.00030684,2]
[310310209,1704471092924,-2710.43,0.00030684,2]
[310310210,1704471092934,-500.0,0.00030684,2]
[310310211,1704471092945,-503.35874424,0.00030684,2]
[310310212,1704471092954,-731.44,0.00030684,2]
[310310213,1704471092964,-500.0,0.00030684,2]
[310310214,1704471092974,-500.0,0.00030684,2]
[310310215,1704471092985,-500.0,0.00030684,2]
[310310216,1704471092994,-500.0,0.00030684,2]
[310310217,1704471093004,-500.0,0.00030684,2]
[310310218,1704471093015,-519.5,0.00030684,2]
[310310219,1704471093025,-2046.64,0.00030684,2]
[310310220,1704471093036,-762.26,0.00030684,2]
[310310221,1704471093046,-1317.65,0.00030684,2]
[310310222,1704471093056,-500.0,0.00030684,2]
[310310223,1704471093066,-620.31,0.00030684,2]
[310310224,1704471093076,-5333.49,0.00030684,2]
[310310225,1704471093086,-500.0,0.00030684,2]
[310310226,1704471093096,-500.0,0.00030684,2]
[310310227,1704471093106,-500.0,0.00030684,2]
[310310228,1704471093116,-978.21,0.00030684,2]
[310310229,1704471093127,-1254.61,0.00030684,2]
[310310230,1704471093137,-500.0,0.00030684,2]
[310310231,1704471093148,-500.0,0.00030684,2]
[310310232,1704471093158,-500.0,0.00030684,2]
[310310233,1704471093168,-802.02,0.00030684,2]
[310310234,1704471093178,-1336.26,0.00030684,2]
[310310235,1704471093187,-537.87,0.00030684,2]
[310310236,1704471093198,-500.0,0.00030684,2]
[310310237,1704471093207,-500.0,0.00030684,2]
[310310238,1704471093217,-500.0,0.00030684,2]
[310310239,1704471093227,-500.0,0.00030684,2]
[310310240,1704471093237,-3771.03,0.00030684,2]
[310310241,1704471093247,-500.65553288,0.00030684,2]
[310310242,1704471093257,-500.0,0.00030684,2]
[310310243,1704471093268,-500.0,0.00030684,2]
[310310244,1704471093277,-500.0,0.00030684,2]
[310310245,1704471093287,-500.0,0.00030684,2]
[310310246,1704471093296,-525.81,0.00030684,2]
[310310247,1704471093306,-287.18640374,0.00030684,2]
[310310248,1704471093316,-500.0,0.00030684,2]
[310310249,1704471093326,-500.0,0.00030684,2]
[310310250,1704471093335,-500.0,0.00030684,2]
[310310251,1704471093345,-328.49246097,0.00030684,2]
[310310252,1704471093355,-500.0,0.00030684,2]
[310310253,1704471093365,-500.0,0.00030684,2]
[310310254,1704471093375,-776.01,0.00030684,2]
[310310255,1704471093386,-500.0,0.00030684,2]
[310310256,1704471093395,-617.29872507,0.00030684,2]
[310310257,1704471093405,-508.62934644,0.00030684,2]
[310310258,1704471093415,-3060.91,0.00030684,2]
[310310259,1704471093425,-13727.19,0.00030684,2]
[310310260,1704471093435,-500.0,0.00030684,2]
[310310261,1704471093445,-500.0,0.00030684,2]
[310310262,1704471093455,-500.0,0.00030684,2]
[310310263,1704471093465,-1204.63,0.00030684,2]
[310310264,1704471093474,-500.0,0.00030684,2]
[310310265,1704471093485,-769.65,0.00030684,2]
[310310266,1704471093495,-500.0,0.00030684,2]
[310310267,1704471093505,-3709.47,0.00030684,2]
[310310268,1704471093514,-500.0,0.00030684,2]
[310310269,1704471093524,-537.11,0.00030684,2]
[310310270,1704471093533,-4626.56,0.00030684,2]
[310310271,1704471093543,-500.0,0.00030684,2]
[310310272,1704471093553,-500.0,0.00030684,2]
[310310273,1704471093562,-500.0,0.00030684,2]
[310310274,1704471093572,-500.0,0.00030684,2]
[310310275,1704471093581,-404.15310294,0.00030684,2]
[310310276,1704471093591,-1733.54,0.00030684,2]
[310310277,1704471093600,-500.0,0.00030684,2]
[310310278,1704471093610,-3029.39,0.00030684,2]
[310310279,1704471093619,-9181.09,0.00030684,2]
[310310280,1704471093628,-5426.23,0.00030684,2]
[310310281,1704471093638,-5834.39,0.00030684,2]
[310310282,1704471093647,-740.27,0.00030684,2]
[310310283,1704471093656,-500.0,0.00030684,2]
[310310284,1704471093666,-500.0,0.00030684,2]
[310310285,1704471093675,-500.0,0.00030684,2]
[310310286,1704471093685,-500.0,0.00030684,2]
[310310287,1704471093695,-799.71,0.00030684,2]
[310310288,1704471093705,-500.0,0.00030684,2]
[310310289,1704471093714,-500.0,0.00030684,2]
[310310290,1704471093725,-4345.18,0.00030684,2]
[310310291,1704471093736,-725.16,0.00030684,2]
[310310292,1704471093746,-500.0,0.00030684,2]
[310310293,1704471093755,-500.0,0.00030684,2]
[310310294,1704471093765,-500.0,0.00030684,2]
[310310295,1704471093778,-500.0,0.00030684,2]
[310310296,1704471093788,-30937.37,0.00030684,2]
[310310297,1704471093798,-821.62,0.00030684,2]
[310310298,1704471093807,-500.0,0.00030684,2]
[310310299,1704471093816,-500.0,0.00030684,2]
[310310300,1704471093826,-500.0,0.00030684,2]
[310310301,1704471093835,-500.0,0.00030684,2]
[310310302,1704471093845,-1420.61,0.00030684,2]
[310310303,1704471093857,-500.0,0.00030684,2]
[310310304,1704471093867,-749.5,0.00030684,2]
[310310305,1704471093877,-362.74296957,0.00030684,2]
[310310306,1704471093887,-675.77,0.00030684,2]
[310310307,1704471093897,-900.8,0.00030684,2]
[310310308,1704471093907,-699.84,0.00030684,2]
[310310309,1704471093917,-500.0,0.00030684,2]
[310310310,1704471093926,-500.0,0.00030684,2]
[310310311,1704471093935,-552.27637867,0.00030684,2]
[310310312,1704471093946,-500.0,0.00030684,2]
[310310313,1704471093956,-500.0,0.00030684,2]
[310310314,1704471093966,-500.0,0.00030684,2]
[310310315,1704471093976,-500.0,0.00030684,2]
[310310316,1704471093988,-605.12,0.00030684,2]
[310310317,1704471094000,-809.12,0.00030684,2]
[310310318,1704471094009,-500.0,0.00030684,2]
[310310319,1704471094019,-1182.33,0.00030684,2]
[310310320,1704471094028,-500.0,0.00030684,2]
[310310321,1704471094037,-3777.28,0.00030684,2]
[310310322,1704471094047,-500.0,0.00030684,2]
[310310323,1704471094057,-1058.15,0.00030684,2]
[310310324,1704471094067,-500.0,0.00030684,2]
[310310325,1704471094077,-571.4,0.00030684,2]
[310310326,1704471094087,-500.0,0.00030684,2]
[310310327,1704471094097,-830.16,0.00030684,2]
[310310328,1704471094107,-2249.97,0.00030684,2]
[310310329,1704471094117,-500.0,0.00030684,2]
[310310330,1704471094128,-500.0,0.00030684,2]
[310310331,1704471094137,-500.0,0.00030684,2]
[310310332,1704471094148,-1078.96,0.00030684,2]
[310310333,1704471094158,-1921.66,0.00030684,2]
[310310334,1704471094168,-500.0,0.00030684,2]
[310310335,1704471094178,-2596.11,0.00030684,2]
[310310336,1704471094189,-1277.02,0.00030684,2]
[310310337,1704471094198,-500.0,0.00030684,2]
[310310338,1704471094209,-1916.84,0.00030684,2]
[310310339,1704471094393,-500.0,0.00030684,2]
[310310340,1704471094407,-652.62,0.00030684,2]
[310310341,1704471094417,-500.0,0.00030684,2]
[310310342,1704471094426,-915.92,0.00030684,2]
[310310343,1704471094436,-500.0,0.00030684,2]
[310310344,1704471094445,-500.0,0.00030684,2]
[310310345,1704471094455,-500.0,0.00030684,2]
[310310346,1704471094464,-500.0,0.00030684,2]
[310310347,1704471094474,-150.0,0.00030684,2]
[310310348,1704471094483,-582.86,0.00030684,2]
[310310349,1704471094493,-790.64,0.00030684,2]
[310310350,1704471094502,-500.0,0.00030684,2]
[310310351,1704471094511,-500.0,0.00030684,2]
[310310352,1704471094520,-500.0,0.00030684,2]
[310310353,1704471094530,-500.0,0.00030684,2]
[310310354,1704471094539,-3952.46,0.00030684,2]
[310310355,1704471094549,-4595.39,0.00030684,2]
[310310356,1704471094558,-500.0,0.00030684,2]
[310310357,1704471094568,-500.0,0.00030684,2]
[310310358,1704471094577,-500.0,0.00030684,2]
[310310359,1704471094587,-500.0,0.00030684,2]
[310310360,1704471094595,-756.94,0.00030684,2]
[310310361,1704471094617,-1252.88,0.00030684,2]
[310310362,1704471094627,-500.0,0.00030684,2]
[310310363,1704471094637,-717.12,0.00030684,2]
[310310364,1704471094647,-964.19,0.00030684,2]
[310310365,1704471094657,-245.40211176,0.00030684,2]
[310310366,1704471094667,-1622.29,0.00030684,2]
[310310367,1704471094677,-500.0,0.00030684,2]
[310310368,1704471094687,-500.0,0.00030684,2]
[310310369,1704471094697,-2229.13,0.00030684,2]
[310310370,1704471094707,-629.9,0.00030684,2]
[310310371,1704471094717,-511.35,0.00030684,2]
[310310372,1704471094727,-500.0,0.00030684,2]
[310310373,1704471094738,-6081.11,0.00030684,2]
[310310374,1704471094749,-1254.57,0.00030684,2]
[310310375,1704471094758,-1984.28,0.00030684,2]
[310310376,1704471094767,-529.0,0.00030684,2]
[310310377,1704471094777,-630.76271295,0.00030684,2]
[310310378,1704471094786,-500.0,0.00030684,2]
[310310379,1704471094796,-500.0,0.00030684,2]
[310310380,1704471094806,-730.24,0.00030684,2]
[310310381,1704471094816,-500.0,0.00030684,2]
[310310382,1704471094826,-1375.91,0.00030684,2]
[310310383,1704471094836,-839.46,0.00030684,2]
[310310384,1704471094846,-500.0,0.00030684,2]
[310310385,1704471094858,-500.0,0.00030684,2]
[310310386,1704471094868,-500.0,0.00030684,2]
[310310387,1704471094878,-500.0,0.00030684,2]
[310310388,1704471094888,-500.0,0.00030684,2]
[310310389,1704471094897,-500.0,0.00030684,2]
[310310390,1704471094906,-500.0,0.00030684,2]
[310310391,1704471094916,-1622.69,0.00030684,2]
[310310392,1704471094926,-11940.29,0.00030684,2]
[310310393,1704471094936,-500.0,0.00030684,2]
[310310394,1704471094945,-500.0,0.00030684,2]
[310310395,1704471094955,-5893.72,0.00030684,2]
[310310396,1704471094965,-713.7,0.00030684,2]
[310310397,1704471094975,-1045.96,0.00030684,2]
[310310398,1704471094985,-2605.01,0.00030684,2]
[310310399,1704471094995,-500.0,0.00030684,2]
[310310400,1704471095005,-500.0,0.00030684,2]
[310310401,1704471095015,-381.78,0.00030684,2]
[310310402,1704471095025,-500.0,0.00030684,2]
[310310403,1704471095035,-500.0,0.00030684,2]
[310310404,1704471095047,-500.0,0.00030684,2]
[310310405,1704471095057,-543.11,0.00030684,2]
[310310406,1704471095068,-500.0,0.00030684,2]
[310310407,1704471095077,-500.0,0.00030684,2]
[310310408,1704471095087,-608.68,0.00030684,2]
[310310409,1704471095098,-7863.2,0.00030684,2]
[310310410,1704471095108,-2294.09,0.00030684,2]
[310310411,1704471095118,-500.0,0.00030684,2]
[310310412,1704471095128,-500.0,0.00030684,2]
[310310413,1704471095138,-647.48,0.00030684,2]
[310310414,1704471095148,-500.0,0.00030684,2]
[310310415,1704471095157,-1192.53,0.00030684,2]
[310310416,1704471095168,-3601.71,0.00030684,2]
[310310417,1704471095178,-500.0,0.00030684,2]
[310310418,1704471095188,-1603.38,0.00030684,2]
[310310419,1704471095198,-500.0,0.00030684,2]
[310310420,1704471095208,-770.23,0.00030684,2]
[310310421,1704471095218,-500.0,0.00030684,2]
[310310422,1704471095228,-500.0,0.00030684,2]
[310310423,1704471095238,-618.49,0.00030684,2]
[310310424,1704471095248,-2938.06,0.00030684,2]
[310310425,1704471095258,-500.0,0.00030684,2]
[310310426,1704471095267,-500.0,0.00030684,2]
[310310427,1704471095278,-1744.78,0.00030684,2]
[310310428,1704471095287,-666.36,0.00030684,2]
[310310429,1704471095297,-500.0,0.00030684,2]
[310310430,1704471095307,-500.0,0.00030684,2]
[310310431,1704471095316,-151.14287405,0.00030684,2]
[310310432,1704471095327,-451.05687144,0.00030684,2]
[310310433,1704471095336,-500.0,0.00030684,2]
[310310434,1704471095346,-500.0,0.00030684,2]
[310310435,1704471095356,-2064.43,0.00030684,2]
[310310436,1704471095365,-5976.75,0.00030684,2]
[310310437,1704471095375,-500.0,0.00030684,2]
[310310438,1704471095384,-5218.54,0.00030684,2]
[310310439,1704471095393,-526.45,0.00030684,2]
[310310440,1704471095403,-650.01,0.00030684,2]
[310310441,1704471095413,-554.78,0.00030684,2]
[310310442,1704471095422,-770.2,0.00030684,2]
[310310443,1704471095432,-531.24944938,0.00030684,2]
[310310444,1704471095442,-500.0,0.00030684,2]
[310310445,1704471095451,-1624.24,0.00030684,2]
[310310446,1704471095461,-500.0,0.00030684,2]
[310310447,1704471095470,-657.7,0.00030684,2]
[310310448,1704471095479,-500.0,0.00030684,2]
[310310449,1704471095489,-500.0,0.00030684,2]
[310310450,1704471095498,-899.11,0.00030684,2]
[310310451,1704471095508,-500.0,0.00030684,2]
[310310452,1704471095517,-573.6919602,0.00030684,2]
[310310453,1704471095528,-2564.8,0.00030684,2]
[310310454,1704471095537,-500.0,0.00030684,2]
[310310455,1704471095547,-912.23,0.00030684,2]
[310310456,1704471095557,-500.0,0.00030684,2]
[310310457,1704471095567,-701.65,0.00030684,2]
[310310458,1704471095578,-733.59,0.00030684,2]
[310310459,1704471095588,-1151.0,0.00030684,2]
[310310460,1704471095597,-500.0,0.00030684,2]
[310310461,1704471095607,-788.16,0.00030684,2]
[310310462,1704471095618,-500.0,0.00030684,2]
[310310463,1704471095650,-500.0,0.00030684,2]
[310310464,1704471095671,-1833.74,0.00030684,2]
[310310465,1704471095695,-466.79273193,0.00030684,2]
[310310466,1704471095716,-1286.65,0.00030684,2]
[310310467,1704471095733,-1365.11,0.00030684,2]
[310310468,1704471095751,-1004.41,0.00030684,2]
[310310469,1704471095773,-500.0,0.00030684,2]
[310310470,1704471095792,-583.7399416,0.00030684,2]
[310310471,1704471095811,-1188.06,0.00030684,2]
[310310472,1704471095830,-500.0,0.00030684,2]
[310310473,1704471095852,-500.0,0.00030684,2]
[310310474,1704471095873,-500.0,0.00030684,2]
[310310475,1704471095886,-500.0,0.00030684,2]
[310310476,1704471095903,-500.0,0.00030684,2]
[310310477,1704471095923,-889.44,0.00030684,2]
[310310478,1704471095936,-500.0,0.00030684,2]
[310310479,1704471095955,-718.53,0.00030684,2]
[310310480,1704471095974,-799.46,0.00030684,2]
[310310481,1704471095993,-557.65609062,0.00030684,2]
[310310482,1704471096009,-2168.33,0.00030684,2]
[310310483,1704471096027,-1229.01,0.00030684,2]
[310310484,1704471096044,-500.0,0.00030684,2]
[310310485,1704471096061,-500.0,0.00030684,2]
[310310486,1704471096078,-500.0,0.00030684,2]
[310310487,1704471096094,-1007.17,0.00030684,2]
[310310488,1704471096111,-1440.65,0.00030684,2]
[310310489,1704471096128,-500.0,0.00030684,2]
[310310490,1704471096144,-500.0,0.00030684,2]
[310310491,1704471096163,-1492.25,0.00030684,2]
[310310492,1704471096180,-1310.28,0.00030684,2]
[310310493,1704471096196,-1033.01,0.00030684,2]
[310310494,1704471096213,-500.0,0.00030684,2]
[310310495,1704471096228,-500.0,0.00030684,2]
[310310496,1704471096243,-537.09833141,0.00030684,2]
[310310497,1704471096260,-8762.76,0.00030684,2]
[310310498,1704471096287,-500.0,0.00030684,2]
[310310499,1704471096317,-500.0,0.00030684,2]
[310310500,1704471096345,-500.0,0.00030684,2]
[310310501,1704471096373,-500.0,0.00030684,2]
[310310502,1704471096399,-1037.25,0.00030684,2]
[310310503,1704471096415,-721.62,0.00030684,2]
[310310504,1704471096430,-500.0,0.00030684,2]
[310310505,1704471096446,-1254.6,0.00030684,2]
[310310506,1704471096462,-1235.07,0.00030684,2]
[310310507,1704471096477,-500.0,0.00030684,2]
[310310508,1704471096493,-500.0,0.00030684,2]
[310310509,1704471096508,-1231.65,0.00030684,2]
[310310510,1704471096523,-1175.89,0.00030684,2]
[310310511,1704471096539,-500.0,0.00030684,2]
[310310512,1704471096554,-500.0,0.00030684,2]
[310310513,1704471096570,-500.0,0.00030684,2]
[310310514,1704471096586,-260.75529755,0.00030684,2]
[310310515,1704471096601,-2988.81,0.00030684,2]
[310310516,1704471096615,-1078.8,0.00030684,2]
[310310517,1704471096630,-500.0,0.00030684,2]
[310310518,1704471096645,-8593.4,0.00030684,2]
[310310519,1704471096660,-858.78,0.00030684,2]
[310310520,1704471096675,-500.0,0.00030684,2]
[310310521,1704471096689,-1000.0,0.00030684,2]
[310310522,1704471096704,-500.0,0.00030684,2]
[310310523,1704471096719,-500.0,0.00030684,2]
[310310524,1704471096733,-500.0,0.00030684,2]
[310310525,1704471096748,-500.0,0.00030684,2]
[310310526,1704471096762,-500.0,0.00030684,2]
[310310527,1704471096777,-500.0,0.00030684,2]
[310310528,1704471096791,-500.0,0.00030684,2]
[310310529,1704471096806,-775.55,0.00030684,2]
[310310530,1704471096820,-608.84208156,0.00030684,2]
[310310531,1704471096835,-508.85,0.00030684,2]
[310310532,1704471096851,-13181.47,0.00030684,2]
[310310533,1704471096865,-2255.28,0.00030684,2]
[310310534,1704471096881,-500.0,0.00030684,2]
[310310535,1704471096895,-1023.39,0.00030684,2]
[310310536,1704471096916,-1387.79,0.00030684,2]
[310310537,1704471096931,-500.0,0.00030684,2]
[310310538,1704471096946,-500.0,0.00030684,2]
[310310539,1704471096961,-500.0,0.00030684,2]
[310310540,1704471096975,-507.25,0.00030684,2]
[310310541,1704471096990,-615.53,0.00030684,2]
[310310542,1704471097005,-500.0,0.00030684,2]
[310310543,1704471097021,-500.0,0.00030684,2]
[310310544,1704471097035,-2939.6,0.00030684,2]
[310310545,1704471097051,-500.08391697,0.00030684,2]
[310310546,1704471097066,-500.0,0.00030684,2]
[310310547,1704471097082,-500.0,0.00030684,2]
[310310548,1704471097098,-500.0,0.00030684,2]
[310310549,1704471097114,-531.07843648,0.00030684,2]
[310310550,1704471097128,-500.0,0.00030684,2]
[310310551,1704471097144,-500.0,0.00030684,2]
[310310552,1704471097159,-875.24,0.00030684,2]
[310310553,1704471097176,-500.0,0.00030684,2]
[310310554,1704471097191,-534.68,0.00030684,2]
[310310555,1704471097206,-871.56,0.00030684,2]
[310310556,1704471097221,-735.74,0.00030684,2]
[310310557,1704471097236,-1299.1,0.00030684,2]
[310310558,1704471097251,-1104.41,0.00030684,2]
[310310559,1704471097266,-500.0,0.00030684,2]
[310310560,1704471097281,-500.0,0.00030684,2]
[310310561,1704471097297,-1102.46,0.00030684,2]
[310310562,1704471097312,-500.0,0.00030684,2]
[310310563,1704471097326,-2232.74,0.00030684,2]
[310310564,1704471097341,-500.0,0.00030684,2]
[310310565,1704471097357,-924.65,0.00030684,2]
[310310566,1704471097373,-500.0,0.00030684,2]
[310310567,1704471097387,-815.75,0.00030684,2]
[310310568,1704471097403,-500.0,0.00030684,2]
[310310569,1704471097418,-500.0,0.00030684,2]
[310310570,1704471097433,-500.0,0.00030684,2]
[310310571,1704471097448,-534.43,0.00030684,2]
[310310572,1704471097463,-1341.18,0.00030684,2]
[310310573,1704471097478,-150.0,0.00030685,2]
[310310574,1704471097493,-150.0,0.00030685,2]
[310310575,1704471097508,-150.0,0.00030685,2]
[310310576,1704471097522,-150.0,0.00030685,2]
[310310577,1704471097538,-150.0,0.00030685,2]
[310310578,1704471097552,-150.0,0.00030685,2]
[310310579,1704471097567,-150.0,0.00030685,2]
[310310580,1704471097582,-150.0,0.00030685,2]
[310310581,1704471097598,-150.0,0.00030685,2]
[310310582,1704471097613,-150.0,0.00030685,2]
[310310583,1704471097627,-150.0,0.00030685,2]
[310310584,1704471097642,-500.0,0.00030737,2]
[310310585,1704471097658,-758.09,0.00030766,2]
[310310586,1704471097673,-947.46968,0.00030822,7]
[310310587,1704471097689,-204.0,0.00030881,15]
[310310588,1704471097925,-2000.0,0.000309,2]
[310310589,1704471097963,-1452.66853793,0.00030955,2]
[310310590,1704471097973,-500.0,0.00030958,2]
[310310591,1704471097983,-785.36,0.00030958,2]
[310310592,1704471097992,-500.0,0.00030958,2]
[310310593,1704471098001,-500.0,0.00030958,2]
[310310594,1704471098010,-500.0,0.00030958,2]
[310310595,1704471098020,-500.0,0.00030958,2]
[310310596,1704471098029,-335.56112426,0.00030958,2]
[310310597,1704471098039,-500.0,0.00030958,2]
[310310598,1704471098049,-500.0,0.00030958,2]
[310310599,1704471098059,-500.0,0.00030958,2]
[310310600,1704471098069,-500.0,0.00030958,2]
[310310601,1704471098078,-500.0,0.00030958,2]
[310310602,1704471098093,-150.0,0.00030958,2]
[310310603,1704471098124,-500.0,0.00030958,2]
[310310604,1704471098134,-1435.45,0.00030958,2]
[310310605,1704471098144,-500.0,0.00030958,2]
[310310606,1704471098153,-500.0,0.00030958,2]
[310310607,1704471098162,-500.0,0.00030958,2]
[310310608,1704471098171,-500.0,0.00030958,2]
[310310609,1704471098181,-500.0,0.00030958,2]
[310310610,1704471098191,-500.0,0.00030958,2]
[310310611,1704471098200,-500.0,0.00030958,2]
[310310612,1704471098210,-500.0,0.00030958,2]
[310310613,1704471098219,-500.0,0.00030958,2]
[310310614,1704471098228,-500.0,0.00030958,2]
[310310615,1704471098237,-500.0,0.00030958,2]
[310310616,1704471098248,-500.0,0.00030958,2]
[310310617,1704471098257,-500.0,0.00030958,2]
[310310618,1704471098267,-500.0,0.00030958,2]
[310310619,1704471098276,-764.34,0.00030958,2]
[310310620,1704471098286,-500.0,0.00030958,2]
[310310621,1704471098295,-749.93,0.00030958,2]
[310310622,1704471098305,-500.0,0.00030958,2]
[310310623,1704471098314,-500.0,0.00030958,2]
[310310624,1704471098325,-512.27,0.00030958,2]